bitfinex/quotes_ETHUSD_20250131
["timestamp","ask_amount","ask_price","bid_price","bid_amount"]
[1738363136438,3.01201,3320.1,3319.5,0.61136871]
[1738363136724,1.41725055,3319.8,3319.5,0.61136871]
[1738363138026,0.7779,3319.7,3319.5,0.61136871]
[1738363140424,1.41725055,3319.6,3319.5,0.61136871]
[1738363141899,4.42966055,3319.6,3319.5,0.61136871]
[1738363142234,1.41725055,3319.6,3319.5,0.61136871]
[1738363142431,4.42966055,3319.6,3319.5,0.61136871]
[1738363142596,4.42966055,3319.6,3319.1,3.0]
[1738363142800,4.42986055,3319.4,3318.8,8.86309]
[1738363143143,4.42986055,3319.4,3318.9,3.0]
[1738363143311,2.21635055,3319.2,3318.8,1.7479032]
[1738363143500,2.21635055,3319.2,3318.8,3.0]
[1738363143702,1.41725055,3319.0,3318.7,1.19228776]
[1738363143898,1.41725055,3318.8,3318.7,0.58962576]
[1738363144443,2.21635055,3318.8,3318.7,0.58962576]
[1738363145814,2.21635055,3318.8,3318.4,0.61086798]
[1738363146527,0.7991,3318.8,3318.4,0.61086798]
[1738363146920,3.81224,3318.8,3318.4,0.61086798]
[1738363147517,3.01323,3318.7,3318.4,0.61086798]
[1738363149542,0.8311,3319.3,3318.8,3.01312]
[1738363149741,2.76531341,3320.0,3318.9,4.102628]
[1738363149946,0.8311,3320.1,3319.2,3.0]
[1738363150154,0.8311,3320.1,3319.6,3.01232]
[1738363150324,2.76531341,3320.3,3319.6,3.01232]
[1738363150508,2.76531341,3320.3,3319.8,3.01221]
[1738363150713,5.77710341,3320.3,3319.6,3.01232]
[1738363151321,5.77710341,3320.3,3319.7,3.04236966]
[1738363151724,0.8311,3320.4,3319.9,3.01212]
[1738363156346,0.8311,3320.4,3319.9,3.614557]
[1738363156928,2.96731341,3320.6,3320.0,3.01198]
[1738363157517,5.97881341,3320.6,3319.9,1.102437]
[1738363158119,2.76531341,3320.0,3319.5,0.5]
[1738363158318,2.76531341,3320.0,3319.4,5.35]
[1738363158715,5.77739341,3320.0,3319.4,8.36257]
[1738363159130,2.76531341,3320.0,3319.4,5.35]
[1738363159325,2.76531341,3320.0,3319.5,3.01249]
[1738363159541,3.01217,3319.9,3319.5,0.836249]
[1738363159740,3.01217,3319.9,3319.2,0.5]
[1738363159923,3.01217,3319.9,3319.2,0.61790891]
[1738363160330,3.01229,3319.8,3319.1,3.01286]
[1738363160529,6.60310341,3319.7,3319.0,3.01294]
[1738363160726,5.77791341,3319.4,3318.8,3.01312]
[1738363161043,5.77791341,3319.4,3318.8,3.364432]
[1738363161252,5.77791341,3319.4,3318.6,3.51329]
[1738363161457,3.01286,3319.1,3318.5,3.60862249]
[1738363162140,3.01299,3319.0,3318.5,0.60862249]
[1738363162453,5.77817341,3319.1,3318.5,0.60862249]
[1738363162753,0.8254,3318.8,3318.5,0.60862249]
[1738363162960,3.59071341,3318.8,3318.5,0.60862249]
[1738363163827,3.01331,3318.6,3318.5,0.60862249]
[1738363164651,3.59071341,3318.8,3318.5,0.60862249]
[1738363164839,6.60390341,3318.8,3318.5,0.60862249]
[1738363166571,3.01324,3318.7,3318.5,0.60862249]
[1738363166931,3.01324,3318.7,3318.1,3.01376]
[1738363167431,3.01337,3318.6,3317.9,3.61514856]
[1738363167633,3.58191341,3318.2,3317.4,0.5]
[1738363167832,3.58191341,3318.2,3317.5,3.01426]
[1738363168565,3.01377,3318.1,3317.5,3.01426]
[1738363168741,3.01377,3318.1,3317.4,3.0]
[1738363168949,3.01377,3318.1,3317.4,6.01439]
[1738363170068,2.7669365,3318.0,3317.4,6.01439]
[1738363171971,2.7669365,3318.0,3317.5,3.01431]
[1738363172646,1.0186,3318.2,3317.5,0.601431]
[1738363172859,1.0186,3318.2,3317.2,0.60482703]
[1738363172860,1.0186,3318.2,3317.8,3.01396]
[1738363174564,2.7669365,3318.0,3317.4,3.0144]
[1738363174769,2.7669365,3318.0,3317.3,3.01449]
[1738363174943,2.7669365,3318.0,3317.4,3.01431]
[1738363175143,5.7807965,3318.0,3317.4,3.01431]
[1738363175753,2.76716982,3317.9,3317.4,3.01431]
[1738363178966,0.8281,3317.8,3317.3,3.01447]
[1738363179176,0.8281,3317.8,3317.4,3.01437]
[1738363179572,0.8281,3317.8,3317.2,3.01458]
[1738363179868,0.8281,3317.8,3317.3,3.01443]
[1738363185107,3.84215,3317.8,3317.2,3.01452]
[1738363185268,3.84215,3317.8,3317.1,3.01468]
[1738363185444,3.84215,3317.8,3317.3,3.01449]
[1738363186703,0.8281,3317.8,3317.3,3.01449]
[1738363190483,0.7684,3317.5,3316.9,3.0148]
[1738363190687,3.78277,3317.5,3316.9,3.0148]
[1738363190889,3.01441,3317.4,3316.7,3.01501]
[1738363191293,2.76716982,3317.3,3316.5,3.01519]
[1738363191596,0.7684,3317.2,3316.7,3.01503]
[1738363192153,3.53556982,3317.0,3316.5,3.60559768]
[1738363192688,6.55033982,3317.0,3316.4,3.99865709]
[1738363193070,0.55,3316.9,3316.4,3.99865709]
[1738363193270,0.55,3316.9,3316.4,0.98338709]
[1738363195214,2.76716982,3317.3,3316.5,0.5]
[1738363195519,0.8036,3317.4,3317.2,3.01452]
[1738363197825,2.76716982,3317.6,3317.3,3.01443]
[1738363198122,2.76716982,3317.6,3317.2,3.01452]
[1738363198322,2.76716982,3317.6,3317.4,3.01438]
[1738363200403,2.76716982,3317.6,3317.2,3.01452]
[1738363200602,2.76716982,3317.6,3317.0,3.01475]
[1738363200935,2.76716982,3317.6,3317.0,3.617667]
[1738363201134,2.76716982,3317.6,3316.7,1.09996076]
[1738363201614,2.76716982,3317.6,3317.2,3.01452]
[1738363201910,2.76716982,3317.6,3317.1,3.01461]
[1738363205381,2.76716982,3317.6,3316.7,1.09996076]
[1738363205382,3.01443,3317.4,3316.8,3.01494]
[1738363206522,0.7618,3316.9,3316.4,3.99867709]
[1738363206680,3.7767,3316.9,3316.4,0.98338709]
[1738363215556,3.77674,3316.9,3316.4,0.98338709]
[1738363215868,3.80612,3316.5,3316.4,0.98338709]
[1738363216074,4.35612,3316.5,3316.4,0.98338709]
[1738363220798,4.35612,3316.5,3315.6,3.01602]
[1738363220799,3.01556,3316.2,3315.6,3.01602]
[1738363221100,0.55,3316.1,3315.6,3.01602]
[1738363224135,3.01714,3314.4,3313.7,3.01771]
[1738363224276,0.7846,3314.1,3313.0,3.51837]
[1738363224466,2.76716982,3313.8,3313.1,3.0183]
[1738363224802,2.76716982,3313.5,3313.0,0.351837]
[1738363226325,2.76716982,3313.2,3312.9,0.61763674]
[1738363226607,2.76716982,3313.2,3312.6,3.01872]
[1738363226973,5.78540982,3313.2,3312.6,3.01872]
[1738363227173,0.55,3313.1,3312.6,3.01872]
[1738363227373,0.55,3313.1,3312.3,3.51903]
[1738363227599,0.55,3313.1,3312.5,3.01883]
[1738363228014,0.55,3313.1,3312.6,0.61606591]
[1738363228307,2.76716982,3313.2,3312.8,3.01858]
[1738363229078,2.76716982,3313.2,3312.6,0.61606591]
[1738363229285,0.7846,3313.3,3312.4,3.83189374]
[1738363229286,2.76716982,3312.9,3312.4,3.83189374]
[1738363229497,2.76716982,3312.9,3312.4,3.16362795]
[1738363230284,2.76716982,3312.9,3312.6,3.01876]
[1738363230486,2.76716982,3312.9,3312.4,6.18256795]
[1738363230903,2.76716982,3312.9,3312.4,3.01894]
[1738363231816,2.76716982,3312.9,3312.3,0.61214192]
[1738363232116,2.76716982,3312.9,3312.3,3.99479911]
[1738363232303,2.76716982,3312.9,3312.4,3.01895]
[1738363233102,0.7721,3312.8,3312.4,3.01895]
[1738363233397,2.76716982,3312.6,3312.3,3.61214192]
[1738363233907,2.76716982,3312.6,3312.3,3.0]
[1738363235744,2.76716982,3312.6,3312.1,3.61798792]
[1738363236043,2.76716982,3312.6,3312.2,3.01913]
[1738363238704,2.76716982,3312.6,3312.1,0.61798792]
[1738363239119,2.76716982,3312.3,3312.1,0.005]
[1738363242649,0.7731,3312.2,3312.1,0.005]
[1738363253378,2.76716982,3312.4,3312.1,0.005]
[1738363253675,2.76716982,3312.4,3312.3,3.01905]
[1738363253977,2.76716982,3312.7,3312.4,3.01887]
[1738363254178,2.76716982,3312.7,3312.6,3.01877]
[1738363258183,2.76716982,3313.0,3312.7,3.01868]
[1738363258487,2.76716982,3313.0,3312.8,3.01857]
[1738363258883,2.76716982,3313.0,3312.7,3.01868]
[1738363259089,2.76716982,3313.0,3312.9,3.0185]
[1738363259735,2.76716982,3313.0,3312.7,3.01868]
[1738363261269,2.76716982,3313.0,3312.7,3.51868]
[1738363261437,2.76716982,3313.0,3312.7,4.172432]
[1738363263852,2.76716982,3313.0,3312.8,3.01857]
[1738363265357,2.76716982,3313.3,3312.8,3.01857]
[1738363267809,2.76716982,3313.3,3312.6,3.01877]
[1738363268013,2.76716982,3313.3,3312.7,3.01867]
[1738363268197,5.78532982,3313.3,3312.7,3.320537]
[1738363268515,2.76716982,3313.3,3312.8,3.01856]
[1738363269011,2.76716982,3313.3,3312.6,3.01871]
[1738363269358,2.76716982,3313.3,3312.7,3.01864]
[1738363269558,2.76716982,3313.0,3312.5,3.01884]
[1738363269757,2.76716982,3313.0,3312.3,3.51903]
[1738363270005,2.76716982,3313.0,3312.3,3.01903]
[1738363270156,3.01855,3312.9,3312.3,3.01903]
[1738363272112,5.78559982,3313.0,3312.4,3.01893]
[1738363272279,3.01852,3312.9,3312.2,6.01907]
[1738363272608,3.01852,3312.9,3312.3,3.01904]
[1738363274911,2.76716982,3312.7,3312.3,3.01904]
[1738363275590,2.76716982,3312.4,3312.1,3.0242]
[1738363275792,2.76716982,3312.4,3312.1,0.005]
[1738363275793,0.7657,3312.3,3312.1,0.005]
[1738363277777,3.01914,3312.2,3312.1,0.005]
[1738363278695,4.33484,3312.2,3312.1,0.005]
[1738363278866,7.33484,3312.2,3312.1,0.005]
[1738363280800,7.34984,3312.2,3312.1,0.005]
[1738363282201,12.73984,3312.2,3312.1,0.005]
[1738363285016,1.3469,3312.1,3310.5,3.02066]
[1738363285306,2.76716982,3311.0,3310.5,3.02067]
[1738363285682,2.76716982,3311.0,3310.7,3.0205]
[1738363285883,3.01971,3311.6,3310.9,3.02032]
[1738363285884,2.76716982,3311.6,3310.9,3.02032]
[1738363286197,2.76716982,3311.6,3311.5,3.01977]
[1738363286365,2.76716982,3311.6,3311.4,3.01986]
[1738363286570,2.76716982,3311.9,3311.5,0.5]
[1738363287002,2.76716982,3311.9,3311.8,3.0195]
[1738363287231,3.54906982,3311.9,3310.3,5.35]
[1738363287384,2.76716982,3311.2,3310.7,0.5]
[1738363287717,0.7819,3311.1,3310.5,3.02061]
[1738363287918,0.7819,3311.1,3310.3,3.02086]
[1738363288121,0.7819,3311.1,3310.6,3.02058]
[1738363288328,0.7819,3311.1,3310.8,3.02037]
[1738363288534,2.76716982,3311.2,3310.8,3.02037]
[1738363288684,2.76716982,3311.2,3310.9,3.02031]
[1738363289699,2.76716982,3311.2,3310.8,3.02032]
[1738363289919,2.76716982,3311.2,3310.9,3.02032]
[1738363290797,2.76716982,3311.2,3310.6,3.52051]
[1738363291001,2.76716982,3311.2,3310.7,3.02048]
[1738363291718,0.7685,3311.4,3310.6,0.5]
[1738363291926,2.76716982,3311.5,3310.6,0.5]
[1738363292103,2.76716982,3312.1,3311.7,3.01956]
[1738363292413,2.76716982,3312.1,3311.6,0.5]
[1738363292618,2.76716982,3312.4,3312.2,3.01913]
[1738363292817,2.76716982,3312.4,3311.6,0.5]
[1738363293118,2.76716982,3312.7,3312.5,3.01886]
[1738363293292,2.76716982,3312.7,3312.3,3.51904]
[1738363293625,2.76716982,3312.7,3312.5,3.01882]
[1738363296308,2.76716982,3312.7,3312.3,3.51904]
[1738363298650,2.76716982,3312.7,3312.4,3.01894]
[1738363301741,2.76716982,3313.3,3312.5,3.01886]
[1738363301945,2.76716982,3313.3,3312.4,0.351894]
[1738363301946,2.76716982,3313.3,3312.8,3.01859]
[1738363302943,2.76716982,3313.3,3312.9,3.01849]
[1738363303123,2.76716982,3313.0,3312.8,3.01854]
[1738363304019,2.76716982,3313.0,3312.6,3.01869]
[1738363305138,2.76716982,3313.0,3312.7,3.01868]
[1738363305747,2.76716982,3313.0,3312.4,3.01894]
[1738363305970,2.76716982,3313.0,3312.2,8.36912]
[1738363305971,0.8157,3312.9,3312.2,8.36912]
[1738363306143,2.76716982,3312.7,3312.3,3.01901]
[1738363306645,5.78585982,3312.7,3312.0,3.01931]
[1738363307112,0.8157,3312.3,3311.7,3.63023377]
[1738363307313,0.8157,3312.3,3311.9,3.0194]
[1738363309345,0.8157,3312.3,3311.7,3.01952]
[1738363310981,0.8157,3312.3,3311.9,3.01938]
[1738363311566,0.8157,3312.3,3312.0,3.01932]
[1738363312679,2.76716982,3312.4,3311.6,0.60467069]
[1738363312877,2.76716982,3312.7,3312.3,3.01905]
[1738363313184,2.76716982,3312.7,3312.1,0.5]
[1738363313185,3.56736982,3313.0,3312.6,3.01876]
[1738363313380,3.56736982,3313.0,3312.6,3.01873]
[1738363313682,2.76716982,3313.0,3312.7,3.01866]
[1738363314977,2.76716982,3313.0,3312.4,3.01889]
[1738363315179,2.76716982,3312.7,3312.4,3.01889]
[1738363316086,2.76716982,3312.7,3312.3,3.01904]
[1738363316779,0.8002,3312.6,3312.1,3.01915]
[1738363317079,0.8002,3312.6,3311.9,3.0194]
[1738363317080,2.76716982,3312.4,3311.9,3.0194]
[1738363318073,5.78613982,3312.4,3311.8,3.01949]
[1738363318700,0.8002,3312.3,3311.8,3.01943]
[1738363319703,2.76716982,3312.1,3311.6,0.61103957]
[1738363321018,2.76716982,3312.1,3311.4,3.0]
[1738363321205,0.55,3312.2,3311.9,3.0194]
[1738363321499,0.8002,3312.3,3312.0,3.01924]
[1738363321699,2.76716982,3312.5,3312.0,3.01924]
[1738363322074,2.76716982,3312.5,3312.0,6.03848]
[1738363322282,2.76716982,3312.5,3312.0,3.01924]
[1738363324507,2.76716982,3312.5,3312.1,3.0192]
[1738363326245,2.76716982,3312.5,3311.8,0.5]
[1738363326427,2.76716982,3312.5,3312.3,3.01898]
[1738363327871,0.8002,3312.6,3312.3,3.01898]
[1738363328021,0.8002,3312.6,3312.4,3.01895]
[1738363329267,2.76716982,3312.8,3312.4,3.01895]
[1738363329558,3.58436982,3313.4,3313.0,3.01841]
[1738363329769,3.58436982,3313.4,3312.5,0.5]
[1738363329975,3.58436982,3313.4,3313.1,3.01831]
[1738363332166,2.76716982,3313.4,3313.2,3.01817]
[1738363332663,2.76716982,3313.4,3313.0,3.01838]
[1738363332838,2.76716982,3313.4,3313.3,3.01813]
[1738363333048,3.58436982,3313.7,3313.5,3.01793]
[1738363333351,2.76716982,3313.7,3313.6,3.01786]
[1738363334246,2.76716982,3313.7,3313.4,3.01801]
[1738363334247,3.58436982,3314.0,3313.7,3.01777]
[1738363335967,0.202,3314.3,3313.9,3.01758]
[1738363336176,5.97736982,3314.4,3313.9,3.01758]
[1738363342160,3.58436982,3314.4,3313.9,3.01758]
[1738363342356,3.58436982,3314.4,3313.9,0.61445425]
[1738363342772,6.60149982,3314.4,3313.9,0.61445425]
[1738363343084,6.60149982,3314.4,3313.8,3.01767]
[1738363343460,6.60149982,3314.4,3313.8,3.61774611]
[1738363344102,6.60149982,3314.4,3313.8,3.01767]
[1738363344391,6.60149982,3314.4,3313.5,3.01792]
[1738363344392,2.76716982,3314.1,3313.7,0.61221899]
[1738363344992,3.31716982,3313.8,3313.7,0.61221899]
[1738363345195,0.55,3313.7,3313.2,3.01814]
[1738363345758,3.56777,3313.7,3313.0,3.01839]
[1738363346399,0.7622,3313.3,3312.8,3.01858]
[1738363346693,3.52936982,3313.8,3313.0,3.01835]
[1738363346900,0.55,3313.5,3313.0,3.01835]
[1738363348697,0.55,3313.5,3313.1,3.01831]
[1738363350898,3.52936982,3313.8,3312.9,0.5]
[1738363350899,0.7622,3313.8,3312.9,0.5]
[1738363351101,0.8306,3313.3,3312.2,0.5]
[1738363351302,0.55,3312.8,3312.3,0.59772657]
[1738363351671,3.56863,3312.8,3312.1,3.01915]
[1738363352083,3.56863,3312.8,3312.2,3.01911]
[1738363355501,0.55,3312.8,3312.2,3.01911]
[1738363355708,0.55,3312.8,3312.3,3.01905]
[1738363359914,0.55,3312.8,3312.4,3.01895]
[1738363360913,0.55,3312.8,3312.1,3.01915]
[1738363361617,0.55,3312.8,3312.3,3.01902]
[1738363365316,0.55,3312.8,3312.2,3.01907]
[1738363366192,0.55,3312.8,3312.3,3.01903]
[1738363367311,2.76716982,3313.2,3312.7,3.01868]
[1738363367830,5.39,3313.4,3313.3,3.01813]
[1738363368042,2.76716982,3313.5,3313.4,3.01804]
[1738363368943,2.76716982,3313.8,3313.5,3.01788]
[1738363370516,0.55,3313.7,3313.5,3.01788]
[1738363375698,2.76716982,3313.8,3313.6,3.01779]
[1738363376832,2.76716982,3313.8,3313.7,3.01777]
[1738363381162,0.203,3314.0,3313.8,3.01766]
[1738363381550,0.203,3314.0,3313.7,0.603556]
[1738363381861,0.203,3314.0,3313.7,3.621326]
[1738363383659,0.203,3314.0,3313.7,0.603556]
[1738363383660,0.55,3314.0,3313.7,0.603556]
[1738363383821,0.55,3314.0,3313.8,3.01761]
[1738363386516,3.57146982,3314.1,3313.8,3.01761]
[1738363387352,3.57146982,3314.1,3313.9,3.01758]
[1738363393888,0.55,3314.5,3313.5,0.5]
[1738363394075,0.8303,3314.4,3314.2,3.0173]
[1738363394275,0.8303,3314.4,3314.0,3.01746]
[1738363394276,0.55,3314.3,3314.1,3.01738]
[1738363395275,0.55,3314.3,3314.2,3.01731]
[1738363395478,0.55,3314.3,3314.1,3.51739]
[1738363395675,0.55,3314.3,3314.2,3.01731]
[1738363396079,0.55,3314.3,3314.2,3.670787]
[1738363396594,1.0323,3315.1,3314.2,0.653477]
[1738363396790,1.0323,3315.1,3314.6,3.01694]
[1738363396989,0.55,3315.0,3314.6,3.01694]
[1738363400040,0.55,3314.8,3314.6,3.01694]
[1738363400783,0.55,3314.8,3314.4,3.0171]
[1738363401696,0.55,3314.8,3314.3,3.01722]
[1738363404394,0.55,3314.8,3314.4,3.01712]
[1738363411698,1.42160522,3314.6,3314.4,3.01712]
[1738363417012,0.55,3314.4,3314.2,0.61919074]
[1738363417210,1.97160522,3314.3,3314.2,0.61919074]
[1738363417376,1.97160522,3314.3,3313.9,3.01751]
[1738363419205,1.97160522,3314.3,3314.0,3.01748]
[1738363422551,1.97160522,3314.3,3314.1,0.2826258]
[1738363424300,1.97160522,3314.3,3313.9,3.01751]
[1738363424836,0.202,3314.6,3313.9,0.66276579]
[1738363425136,0.202,3314.6,3314.0,0.03017197]
[1738363425499,0.7738,3314.7,3314.4,3.01713]
[1738363427719,0.7738,3314.7,3314.3,3.01722]
[1738363427925,0.7738,3314.7,3314.4,3.01707]
[1738363428108,1.42160522,3314.8,3314.4,3.01707]
[1738363430706,1.42160522,3314.8,3314.3,3.01722]
[1738363431008,1.42160522,3314.8,3314.5,3.01703]
[1738363431510,1.42160522,3315.0,3314.7,3.01684]
[1738363432799,1.42160522,3314.8,3314.7,3.01684]
[1738363433441,1.42160522,3314.8,3314.5,3.01703]
[1738363433641,1.42160522,3314.8,3314.6,3.01688]
[1738363434009,1.42160522,3314.8,3314.4,3.01711]
[1738363434210,2.24330522,3314.6,3314.4,0.61605189]
[1738363434545,0.8217,3314.6,3314.4,3.01712]
[1738363434740,2.24330522,3314.8,3314.4,3.01712]
[1738363435661,2.24330522,3314.8,3314.4,3.920555]
[1738363435860,2.24330522,3314.8,3314.5,0.28271319]
[1738363437152,2.24330522,3314.8,3314.4,3.01712]
[1738363437459,1.42160522,3314.8,3314.6,3.01692]
[1738363440728,1.42160522,3314.8,3314.6,3.01691]
[1738363440975,2.18320522,3314.8,3314.7,3.318481]
[1738363441271,2.18320522,3314.8,3314.7,3.01679]
[1738363441430,1.42160522,3314.8,3314.7,3.01679]
[1738363442767,2.73320522,3314.8,3314.5,3.01704]
[1738363443063,0.8196,3314.1,3313.4,3.018]
[1738363443365,1.42160522,3313.7,3313.4,3.018]
[1738363443661,1.42160522,3313.7,3313.4,3.671621]
[1738363443971,1.42160522,3313.7,3313.5,3.01793]
[1738363445721,0.202,3314.0,3313.5,3.01793]
[1738363445921,0.752,3314.0,3313.5,3.01793]
[1738363446435,2.773714,3313.8,3313.3,0.5]
[1738363446632,0.55,3313.7,3313.1,3.0]
[1738363446932,2.773714,3313.5,3312.8,3.51857]
[1738363447145,0.55,3313.4,3312.8,3.51857]
[1738363449668,0.55,3313.4,3312.8,0.5]
[1738363449868,3.5681,3313.4,3312.7,3.6368442]
[1738363450079,3.5681,3313.4,3312.7,3.01862]
[1738363450768,0.55,3313.4,3312.7,3.01862]
[1738363451066,0.7566,3313.1,3312.7,3.01862]
[1738363451419,0.55,3313.0,3312.7,3.01862]
[1738363451968,0.55,3313.0,3312.5,3.61063925]
[1738363452155,0.55,3313.0,3312.5,3.01886]
[1738363454260,0.55,3312.5,3312.0,3.63247148]
[1738363454425,0.55,3312.5,3312.0,3.01924]
[1738363455966,0.55,3312.5,3312.2,3.01913]
[1738363456400,0.7713,3312.7,3312.3,3.01899]
[1738363456705,0.7713,3312.7,3312.4,3.01893]
[1738363457548,0.202,3312.8,3312.5,3.01883]
[1738363458886,0.752,3312.8,3312.4,3.01893]
[1738363462297,3.545014,3312.9,3312.4,3.622736]
[1738363462517,3.746114,3313.2,3312.5,0.5]
[1738363462654,3.746114,3313.2,3312.7,3.01867]
[1738363462849,3.544114,3313.2,3312.8,3.01857]
[1738363463054,3.544114,3313.2,3312.9,3.01848]
[1738363464003,2.773714,3313.2,3312.9,3.01848]
[1738363464186,2.773714,3313.5,3313.1,3.01829]
[1738363464501,2.773714,3313.8,3313.3,3.01805]
[1738363464652,2.773714,3313.8,3313.4,3.01804]
[1738363464852,0.55,3314.0,3313.5,3.01789]
[1738363465206,3.523714,3314.1,3313.6,3.01784]
[1738363465358,2.773714,3314.1,3313.9,3.01757]
[1738363468607,2.773714,3314.4,3314.0,3.0175]
[1738363469291,2.773714,3314.4,3314.1,3.0174]
[1738363470068,2.773714,3314.4,3314.1,2.97113354]
[1738363470289,2.773714,3314.4,3313.9,3.51758]
[1738363470489,2.773714,3314.4,3314.0,3.01743]
[1738363470862,2.773714,3314.4,3314.1,3.0174]
[1738363473297,3.592014,3314.7,3314.1,3.670898]
[1738363474312,3.592014,3314.7,3314.2,3.01729]
[1738363474607,3.592014,3314.7,3314.1,3.670888]
[1738363474761,3.592014,3314.7,3314.2,3.01731]
[1738363483122,3.592014,3314.7,3314.4,3.01712]
[1738363484993,0.8183,3314.7,3314.4,3.01712]
[1738363490237,3.592014,3314.7,3314.2,3.01731]
[1738363490936,3.592014,3314.7,3314.3,3.01722]
[1738363493838,1.42174502,3314.5,3314.3,3.01722]
[1738363494945,1.42174502,3314.9,3314.3,0.66312212]
[1738363495254,1.42174502,3315.5,3315.2,3.0164]
[1738363495455,1.42174502,3315.5,3315.3,3.01631]
[1738363495748,1.42174502,3315.9,3315.6,3.01599]
[1738363496118,1.42174502,3315.9,3315.6,3.51599]
[1738363496318,1.42174502,3315.9,3315.7,3.01595]
[1738363497758,0.7904,3316.2,3315.7,3.01595]
[1738363498253,0.7904,3316.2,3315.8,3.01585]
[1738363500525,0.7904,3316.2,3315.8,3.01579]
[1738363500725,0.55,3316.5,3316.0,3.01567]
[1738363501027,2.77008126,3316.6,3316.0,3.01567]
[1738363501237,2.77008126,3316.6,3316.2,3.01549]
[1738363501625,2.77008126,3316.6,3316.2,3.01546]
[1738363502125,2.77008126,3316.6,3316.2,0.603113]
[1738363502327,2.77008126,3316.9,3316.2,1.103113]
[1738363502528,2.77008126,3316.9,3316.4,3.0153]
[1738363502856,2.77008126,3316.9,3316.5,3.01521]
[1738363503158,2.77008126,3316.9,3316.6,3.01511]
[1738363504661,2.77008126,3316.9,3316.4,3.01531]
[1738363504662,3.52348126,3317.2,3316.2,3.51549]
[1738363504840,3.52348126,3317.2,3316.5,3.0152]
[1738363505022,3.52348126,3317.2,3316.6,3.01507]
[1738363508169,3.52348126,3317.2,3316.7,3.01502]
[1738363508365,3.52348126,3317.2,3316.5,3.0152]
[1738363508567,3.01436,3317.5,3316.1,5.35]
[1738363508568,2.77008126,3316.6,3316.1,5.35]
[1738363508735,2.77008126,3316.3,3316.1,5.35]
[1738363508938,2.77008126,3316.3,3315.9,3.01569]
[1738363509142,3.01559,3316.1,3315.8,0.79991738]
[1738363509375,2.77008126,3316.0,3315.8,0.79991738]
[1738363509681,3.01577,3315.9,3315.8,0.79991738]
[1738363509841,3.77987,3315.9,3315.8,0.79991738]
[1738363510343,0.7641,3315.9,3315.8,0.79991738]
[1738363511046,3.77987,3315.9,3315.8,0.79991738]
[1738363511573,4.32987,3315.9,3315.8,0.79991738]
[1738363514679,1.3141,3315.9,3315.8,0.79991738]
[1738363518790,0.7641,3315.9,3315.8,0.79991738]
[1738363519260,3.77987,3315.9,3315.8,0.79991738]
[1738363520685,3.77987,3315.9,3315.3,3.01628]
[1738363523182,3.77987,3315.9,3315.3,3.63174914]
[1738363524408,3.01596,3315.7,3315.3,0.61546914]
[1738363525319,3.56586,3315.8,3315.3,0.61546914]
[1738363526961,2.77008126,3316.0,3315.4,0.5]
[1738363527161,2.77008126,3316.0,3315.5,3.01613]
[1738363527994,3.01579,3315.9,3315.3,3.63177914]
[1738363528868,3.57688126,3315.7,3315.3,0.61546914]
[1738363529068,6.59291126,3315.7,3315.1,3.01646]
[1738363531521,0.8068,3315.3,3314.9,3.01665]
[1738363531725,0.8068,3315.3,3314.8,3.8169287]
[1738363532019,0.8068,3315.3,3314.8,0.8001587]
[1738363532218,3.82319,3315.3,3314.8,0.8001587]
[1738363532918,3.56647,3315.2,3314.8,0.8001587]
[1738363534725,3.01651,3315.1,3314.8,0.8001587]
[1738363535189,0.55,3315.2,3314.8,0.8001587]
[1738363540992,0.55,3315.0,3314.8,0.8001587]
[1738363541706,0.55,3315.2,3314.9,0.5]
[1738363542225,0.55,3315.2,3314.8,0.8001587]
[1738363542407,0.55,3315.0,3314.8,0.8001587]
[1738363542611,1.3675,3315.0,3314.8,0.8001587]
[1738363547634,0.55,3315.0,3314.8,0.8001587]
[1738363548337,1.3503,3314.9,3314.8,0.8001587]
[1738363548539,0.55,3314.9,3314.8,0.8001587]
[1738363559739,1.97156025,3314.9,3314.8,0.8001587]
[1738363564451,4.98824025,3314.9,3314.8,0.8001587]
[1738363569064,3.56668,3314.9,3314.8,0.8001587]
[1738363569275,4.37918,3314.9,3314.8,0.8001587]
[1738363579278,9.76918,3314.9,3314.8,0.8001587]
[1738363581673,9.76,3314.9,3313.8,0.5]
[1738363581878,1.42156025,3313.9,3313.5,0.5]
[1738363582173,1.42156025,3313.7,3313.5,0.5]
[1738363582562,1.42156025,3313.7,3313.6,0.28275209]
[1738363583375,4.98933025,3313.7,3313.6,0.28275209]
[1738363583987,5.79273025,3313.7,3313.6,0.28275209]
[1738363584284,5.79273025,3313.7,3312.6,3.01874]
[1738363584285,3.01804,3313.4,3313.3,0.28275209]
[1738363584469,4.98960025,3313.4,3313.3,0.28275209]
[1738363584650,5.79300025,3313.4,3313.3,0.28275209]
[1738363585375,0.55,3313.3,3312.6,0.5]
[1738363585580,0.55,3312.9,3312.6,0.5]
[1738363585776,1.42156025,3312.7,3312.6,0.5]
[1738363585952,1.42156025,3312.7,3312.5,0.22593132]
[1738363586881,0.55,3312.6,3312.4,1.00868341]
[1738363587073,1.97156025,3312.5,3312.4,0.22593132]
[1738363587651,6.34533728,3312.5,3312.4,0.22593132]
[1738363588850,0.015,3312.3,3311.2,0.67863238]
[1738363589057,6.34643728,3311.3,3311.2,0.67863238]
[1738363589371,3.57016,3311.1,3310.7,0.5]
[1738363589770,0.55,3310.9,3310.7,0.5]
[1738363591084,3.5701,3311.2,3310.7,0.5]
[1738363591249,0.55,3311.2,3310.7,0.5]
[1738363591451,0.55,3311.2,3310.7,0.852059]
[1738363592365,5.99745728,3311.3,3310.9,3.02032]
[1738363592366,2.97747728,3311.3,3310.9,3.02032]
[1738363592555,0.201,3311.5,3311.0,3.02021]
[1738363592758,0.55,3311.4,3311.1,3.52011]
[1738363592957,0.55,3311.4,3311.1,0.5]
[1738363593157,0.201,3311.5,3311.2,3.02002]